bitfinex/quotes_BTCUSD_20240731
["timestamp","ask_amount","ask_price","bid_price","bid_amount"]
[1722433574413,0.001,66897.0,66894.0,0.1372]
[1722433574642,0.1,66901.0,66894.0,0.1372]
[1722433574875,0.003,66897.0,66896.0,0.001]
[1722433575355,0.1,66901.0,66894.0,0.1372]
[1722433575636,0.209373,66908.0,66900.0,0.149476]
[1722433575904,0.003,66897.0,66896.0,0.747427]
[1722433576233,0.003,66897.0,66894.0,0.1382]
[1722433576744,0.003,66897.0,66894.0,0.287689]
[1722433576984,0.003,66897.0,66894.0,0.1382]
[1722433577230,0.149472,66902.0,66896.0,0.149485]
[1722433577469,0.004,66897.0,66896.0,0.001]
[1722433577956,0.149479,66899.0,66894.0,0.1372]
[1722433578215,0.004,66897.0,66894.0,0.1382]
[1722433578704,0.298938,66904.0,66884.0,0.0788]
[1722433578705,0.14955172,66896.0,66884.0,0.0788]
[1722433578971,0.298984,66894.0,66884.0,0.0788]
[1722433579212,0.149498,66891.0,66884.0,0.0788]
[1722433579460,0.14955172,66890.0,66884.0,0.0788]
[1722433579820,0.29905172,66890.0,66884.0,0.0788]
[1722433580030,0.14955172,66890.0,66884.0,0.0788]
[1722433580262,0.004,66897.0,66896.0,0.448456]
[1722433580473,0.045,66908.0,66907.0,0.229061]
[1722433580694,0.045,66908.0,66907.0,0.893405]
[1722433581401,0.045,66908.0,66907.0,1.192327]
[1722433582260,0.045,66908.0,66907.0,1.65080072]
[1722433582488,0.045,66908.0,66907.0,1.54386623]
[1722433582489,0.047,66908.0,66907.0,1.54386623]
[1722433582710,0.047,66908.0,66907.0,1.4196521]
[1722433582930,0.047,66908.0,66907.0,1.4296521]
[1722433583146,0.047,66908.0,66907.0,1.4196521]
[1722433583869,0.045,66908.0,66907.0,1.4196521]
[1722433584084,0.047,66908.0,66907.0,1.192327]
[1722433584308,0.047,66908.0,66907.0,1.23401195]
[1722433584527,0.045,66908.0,66907.0,1.2751024]
[1722433584965,0.045,66908.0,66907.0,1.2791024]
[1722433585190,0.045,66908.0,66907.0,1.23901195]
[1722433585404,0.045,66908.0,66907.0,1.192327]
[1722433585853,0.04583,66908.0,66907.0,0.1511]
[1722433586069,0.04583,66908.0,66907.0,0.300561]
[1722433586289,0.04583,66908.0,66907.0,0.1511]
[1722433586967,0.04583,66908.0,66907.0,0.300561]
[1722433587181,0.04583,66908.0,66907.0,0.296561]
[1722433587400,0.04583,66908.0,66907.0,0.1511]
[1722433587644,0.04583,66908.0,66907.0,0.005]
[1722433587895,0.64375672,66908.0,66907.0,0.005]
[1722433588119,0.94267372,66908.0,66907.0,0.001]
[1722433588337,0.64575672,66908.0,66907.0,0.001]
[1722433588555,0.64575672,66908.0,66896.0,0.0617]
[1722433588556,0.149472,66902.0,66896.0,0.0617]
[1722433588796,0.298929,66906.0,66896.0,0.0617]
[1722433589008,0.14955172,66905.0,66897.0,0.00684841]
[1722433589444,0.04583,66908.0,66897.0,0.00983795]
[1722433589667,0.05983,66908.0,66907.0,0.001]
[1722433589889,0.149467,66905.0,66897.0,0.149482]
[1722433590134,0.344747,66908.0,66890.0,0.0619]
[1722433590135,0.04583,66908.0,66890.0,0.0619]
[1722433590355,0.298946,66902.0,66898.0,0.00684728]
[1722433590577,0.014,66905.0,66900.0,0.149476]
[1722433590800,0.014,66905.0,66894.0,0.149489]
[1722433590801,0.149473,66902.0,66894.0,0.149489]
[1722433591018,0.014,66905.0,66894.0,0.149489]
[1722433591019,0.149475,66901.0,66894.0,0.149489]
[1722433591275,0.29894,66903.0,66892.0,0.298989]
[1722433591502,0.014,66905.0,66887.0,0.0754]
[1722433591503,0.0657,66898.0,66887.0,0.0754]
[1722433591764,0.0657,66898.0,66880.0,0.0754]
[1722433591990,0.1,66900.0,66897.0,0.001]
[1722433592225,0.05983,66908.0,66897.0,0.001]
[1722433592457,0.003,66902.0,66897.0,0.001]
[1722433592911,0.448443,66898.0,66897.0,0.001]
[1722433593154,0.747405,66898.0,66897.0,0.001]
[1722433593386,0.59799472,66898.0,66897.0,0.001]
[1722433593628,1.06255672,66898.0,66897.0,0.001]
[1722433594332,0.39903272,66898.0,66897.0,0.001]
[1722433594551,0.163471,66903.0,66897.0,0.001]
[1722433594817,0.003,66898.0,66897.0,0.52975]
[1722433595115,0.152481,66898.0,66897.0,0.001]
[1722433595342,0.152481,66898.0,66887.0,0.0611]
[1722433595343,0.298997,66891.0,66887.0,0.0611]
[1722433595583,0.149509,66886.0,66884.0,0.075]
[1722433595792,0.299012,66887.0,66884.0,0.075]
[1722433596013,0.14955172,66890.0,66884.0,0.075]
[1722433596233,0.299016,66886.0,66879.0,0.0611]
[1722433596441,0.299043,66880.0,66874.0,0.0636]
[1722433596707,0.149519,66881.0,66874.0,0.213134]
[1722433596927,0.14955172,66885.0,66874.0,0.0636]
[1722433597161,0.29903,66883.0,66874.0,0.0636]
[1722433597373,0.448611,66873.0,66872.0,0.0751]
[1722433597601,0.299083,66871.0,66867.0,0.000913]
[1722433597845,0.149548,66868.0,66867.0,0.000913]
[1722433598089,0.448644,66868.0,66867.0,0.000913]
[1722433598337,0.14955172,66870.0,66867.0,0.000913]
[1722433598565,0.299051,66879.0,66870.0,0.149543]
[1722433598779,0.299051,66879.0,66867.0,0.000913]
[1722433598780,0.149532,66876.0,66868.0,0.149547]
[1722433598993,0.1,66875.0,66867.0,0.000913]
[1722433599224,0.04460882,66886.0,66870.0,0.07476412]
[1722433599455,0.003,66868.0,66867.0,0.1520172]
[1722433599672,0.003,66868.0,66867.0,0.000913]
[1722433599884,0.29904,66881.0,66867.0,0.000913]
[1722433600095,0.14955172,66872.0,66867.0,0.000913]
[1722433600311,0.14955172,66872.0,66868.0,0.001]
[1722433600952,0.149546,66869.0,66868.0,0.001]
[1722433601163,0.89728172,66869.0,66868.0,0.001]
[1722433601604,0.89728172,66869.0,66867.0,0.000913]
[1722433601605,0.74774,66868.0,66867.0,0.000913]
[1722433601823,1.19938772,66868.0,66867.0,0.000913]
[1722433602037,0.90029172,66868.0,66867.0,0.000913]
[1722433602461,0.59819572,66868.0,66867.0,0.000913]
[1722433602720,0.34333855,66875.0,66867.0,0.000913]
[1722433602932,0.003,66869.0,66868.0,0.001]
[1722433603144,0.003,66869.0,66868.0,0.002]
[1722433603369,0.014,66872.0,66868.0,0.001]
[1722433603580,0.14955172,66871.0,66868.0,0.001]
[1722433603792,0.149545,66870.0,66868.0,0.001]
[1722433604033,0.14955172,66870.0,66867.0,0.146813]
[1722433604245,0.159548,66868.0,66867.0,0.001913]
[1722433604455,0.45846401,66868.0,66867.0,0.001913]
[1722433604902,0.60101573,66868.0,66867.0,0.000913]
[1722433605112,0.15255172,66868.0,66867.0,0.000913]
[1722433605323,0.003,66868.0,66867.0,0.000913]
[1722433605749,0.003,66868.0,66867.0,0.45058397]
[1722433606188,0.003,66868.0,66867.0,0.812965]
[1722433606887,0.003,66868.0,66867.0,1.112066]
[1722433607333,0.003,66868.0,66867.0,1.194166]
[1722433607736,0.013,66868.0,66867.0,1.195166]
[1722433607953,0.013,66868.0,66867.0,1.494267]
[1722433608612,0.013,66868.0,66867.0,1.65381872]
[1722433608835,0.01,66868.0,66867.0,1.64381872]
[1722433609086,0.011,66868.0,66867.0,1.64381872]
[1722433609303,0.001,66868.0,66867.0,1.64281872]
[1722433609741,0.0446099,66892.0,66872.0,0.08]
[1722433609961,0.1940979,66895.0,66887.0,0.08]
[1722433610176,0.29903972,66895.0,66887.0,0.08]
[1722433610448,0.149495,66892.0,66887.0,0.08]
[1722433610664,0.14955172,66891.0,66882.0,0.149516]
[1722433610879,0.149506,66887.0,66881.0,0.149518]
[1722433611116,0.149506,66887.0,66873.0,0.36427]
[1722433611117,0.14955172,66886.0,66874.0,0.0771]
[1722433611336,0.14955172,66886.0,66879.0,0.299045]
[1722433611551,0.14955172,66886.0,66877.0,0.299055]
[1722433611807,0.04461286,66891.0,66885.0,0.149509]
[1722433612032,0.14955172,66890.0,66874.0,0.0771]
[1722433612295,0.149506,66887.0,66880.0,0.14952]
[1722433612537,0.299003,66889.0,66881.0,0.149518]
[1722433612538,0.149503,66888.0,66881.0,0.149518]
[1722433613001,0.149503,66888.0,66882.0,0.001]
[1722433613169,0.14955172,66889.0,66882.0,0.001]
[1722433613388,0.003,66890.0,66889.0,0.149501]
[1722433613590,0.003,66890.0,66889.0,0.590603]
[1722433613763,0.003,66890.0,66889.0,0.291601]
[1722433614190,0.003,66890.0,66889.0,1.188607]
[1722433614716,0.04460481,66903.0,66893.0,0.298981]
[1722433614920,0.14955172,66902.0,66893.0,0.298981]
[1722433615129,0.04460481,66904.0,66903.0,0.14947]
[1722433615345,0.149485,66896.0,66889.0,0.291601]
[1722433615634,0.07476412,66900.0,66889.0,0.1421]
[1722433615865,0.14955172,66901.0,66896.0,0.298967]
[1722433616095,0.14955172,66901.0,66891.0,0.149495]
[1722433616305,0.14955172,66901.0,66891.0,0.298993]
[1722433616512,0.14955172,66901.0,66891.0,0.29899]
[1722433616724,0.14955172,66901.0,66889.0,0.1421]
[1722433616725,0.014,66896.0,66892.0,0.298988]
[1722433616983,0.014,66896.0,66889.0,0.1431]
[1722433616984,0.014,66896.0,66895.0,0.149485]
[1722433617195,0.014,66896.0,66895.0,0.448461]
[1722433617441,0.15255172,66901.0,66895.0,0.149487]
[1722433617691,0.149477,66900.0,66893.0,0.149492]
[1722433617897,0.149477,66900.0,66896.0,0.001]
[1722433618686,0.212883,66897.0,66896.0,0.001]
[1722433618917,0.66140172,66897.0,66896.0,0.001]
[1722433619396,0.149488,66895.0,66892.0,0.001]
[1722433619627,0.29904272,66894.0,66885.0,0.149509]
[1722433619868,0.149507,66887.0,66882.0,0.064]
[1722433620108,0.07476412,66889.0,66872.0,0.0764]
[1722433620109,0.14955172,66886.0,66872.0,0.0764]
[1722433620347,0.0634,66885.0,66872.0,0.0764]
[1722433620615,0.14955172,66884.0,66878.0,0.149524]
[1722433620841,0.14955172,66884.0,66872.0,0.375478]
[1722433621092,0.14955172,66884.0,66882.0,0.149516]
[1722433621314,0.14955172,66884.0,66881.0,0.149518]
[1722433621542,0.14955172,66884.0,66882.0,0.149516]
[1722433621773,0.14955172,66884.0,66878.0,0.29905]
[1722433622018,0.004,66887.0,66886.0,0.448524]
[1722433622307,0.004,66887.0,66886.0,0.82934]
[1722433622795,0.003,66895.0,66894.0,0.14949]
[1722433623039,0.003,66895.0,66886.0,0.441514]
[1722433623040,0.0446089,66899.0,66896.0,0.149485]
[1722433623317,0.14955172,66898.0,66896.0,0.149485]
[1722433623556,0.10083,66900.0,66898.0,0.448443]
[1722433623557,0.14955172,66899.0,66898.0,0.448443]
[1722433623777,0.00083,66900.0,66899.0,0.747395]
[1722433624014,0.00083,66900.0,66899.0,1.046353]
[1722433624253,0.00083,66900.0,66899.0,1.184753]
[1722433624957,0.00083,66900.0,66899.0,1.483711]
[1722433625192,0.00083,66900.0,66899.0,1.64526272]
[1722433626117,0.00083,66900.0,66899.0,1.66526272]
[1722433626635,0.00183,66900.0,66899.0,1.66626272]
[1722433626847,0.00283,66900.0,66899.0,1.67326272]
[1722433627308,0.00183,66900.0,66899.0,1.70813812]
[1722433627776,0.00183,66900.0,66899.0,1.67226272]
[1722433628015,0.00183,66900.0,66899.0,1.70926272]
[1722433628244,0.00183,66900.0,66899.0,2.00822072]
[1722433628471,0.00083,66900.0,66899.0,2.00122072]
[1722433628656,0.00083,66900.0,66899.0,1.70226272]
[1722433629590,0.00083,66900.0,66899.0,1.68826272]
[1722433629839,0.00183,66900.0,66899.0,1.70926272]
[1722433630063,0.00183,66900.0,66899.0,1.75113812]
[1722433630256,0.00083,66900.0,66899.0,1.70226272]
[1722433630525,0.00183,66900.0,66899.0,1.70926272]
[1722433630752,0.00083,66900.0,66899.0,1.70226272]
[1722433631199,0.00183,66900.0,66899.0,1.99422072]
[1722433631432,0.00183,66900.0,66899.0,2.00822072]
[1722433632350,0.00083,66900.0,66899.0,1.69913812]
[1722433632583,0.00083,66900.0,66899.0,1.67926272]
[1722433632827,0.00083,66900.0,66899.0,1.66526272]
[1722433633089,0.00083,66900.0,66899.0,1.98722072]
[1722433633323,0.00083,66900.0,66899.0,2.11142978]
[1722433633589,0.00083,66900.0,66899.0,2.12542978]
[1722433633804,0.00183,66900.0,66899.0,2.00822072]
[1722433633986,0.00083,66900.0,66899.0,2.00122072]
[1722433634499,0.00183,66900.0,66899.0,2.11943335]
[1722433634717,0.00183,66900.0,66899.0,2.13343335]
[1722433634977,0.00183,66900.0,66899.0,1.71026272]
[1722433635402,0.00183,66900.0,66899.0,1.81447797]
[1722433635621,0.00183,66900.0,66899.0,1.65526272]
[1722433635869,0.00183,66900.0,66899.0,1.66526272]
[1722433636107,0.00183,66900.0,66899.0,1.65526272]
[1722433636597,0.14733,66900.0,66899.0,0.171479]
[1722433636828,0.14733,66900.0,66899.0,0.022]
[1722433637302,0.29688172,66900.0,66899.0,0.022]
[1722433637573,0.29688172,66900.0,66899.0,0.008]
[1722433637800,0.29588172,66900.0,66899.0,0.011]
[1722433638265,0.07713,66900.0,66899.0,0.001]
[1722433638489,0.00083,66900.0,66899.0,0.747395]
[1722433638725,0.00183,66900.0,66899.0,1.047353]
[1722433638954,0.00183,66900.0,66899.0,0.749395]
[1722433638955,0.01583,66900.0,66899.0,0.749395]
[1722433639873,0.01583,66900.0,66899.0,0.151479]
[1722433640109,0.00083,66900.0,66889.0,0.299002]
[1722433640342,0.0621,66899.0,66887.0,0.299011]
[1722433640600,0.149487,66896.0,66882.0,0.0649]
[1722433640825,0.21165172,66899.0,66892.0,0.149493]
[1722433641057,0.0621,66899.0,66896.0,0.149485]
[1722433641297,0.01483,66900.0,66895.0,0.15247657]
[1722433641298,0.02883,66900.0,66895.0,0.15247657]
[1722433641506,0.02883,66900.0,66891.0,0.149496]
[1722433641507,0.29903372,66898.0,66891.0,0.149496]
[1722433641778,0.14955172,66898.0,66893.0,0.149491]
[1722433642014,0.00383,66900.0,66894.0,0.30196971]
[1722433642259,0.00383,66900.0,66899.0,0.757395]
[1722433642497,0.00383,66900.0,66899.0,1.52786272]
[1722433642723,0.00383,66900.0,66899.0,1.49486272]
[1722433642981,0.00383,66900.0,66899.0,1.19590472]
[1722433643439,0.00383,66900.0,66899.0,1.046353]
[1722433644112,0.00083,66900.0,66899.0,1.046353]
[1722433644574,0.00283,66900.0,66899.0,1.046353]
[1722433644812,0.00083,66900.0,66899.0,1.49486272]
[1722433645052,0.00083,66900.0,66899.0,1.54786272]
[1722433645296,0.00283,66900.0,66899.0,1.54986272]
[1722433645558,0.00283,66900.0,66899.0,1.75788568]
[1722433645799,0.00283,66900.0,66899.0,1.72588568]
[1722433646027,0.00283,66900.0,66899.0,1.57866272]
[1722433646706,0.00283,66900.0,66899.0,0.831195]
[1722433646707,0.00083,66900.0,66899.0,0.831195]
[1722433646925,0.00083,66900.0,66899.0,0.749395]
[1722433647150,0.00083,66900.0,66899.0,1.048353]
[1722433647373,0.00083,66900.0,66899.0,0.749395]
[1722433647599,0.00083,66900.0,66899.0,1.048353]
[1722433648104,0.00083,66900.0,66899.0,1.51786272]
[1722433648337,0.00083,66900.0,66899.0,1.25490472]
[1722433648570,0.00283,66900.0,66899.0,1.63016272]
[1722433648996,0.00283,66900.0,66899.0,1.75038691]
[1722433649322,0.00283,66900.0,66899.0,1.75338691]
[1722433649752,0.00283,66900.0,66899.0,1.75038691]
[1722433650157,0.00283,66900.0,66899.0,1.76238691]
[1722433650373,0.00083,66900.0,66899.0,1.76238691]
[1722433650508,0.00083,66900.0,66899.0,1.74038691]
[1722433650751,0.00183,66900.0,66899.0,1.74038691]
[1722433650988,0.00083,66900.0,66899.0,1.63616272]
[1722433651200,0.00083,66900.0,66899.0,1.74038363]
[1722433651426,0.00183,66900.0,66899.0,1.43842563]
[1722433651879,0.00183,66900.0,66899.0,1.41542563]
[1722433652106,0.00183,66900.0,66899.0,1.29120472]
[1722433652341,0.00183,66900.0,66899.0,1.4154361]
[1722433652572,0.00183,66900.0,66899.0,1.4254361]
[1722433652854,0.00183,66900.0,66899.0,1.4154361]
[1722433653290,0.00183,66900.0,66899.0,1.26588438]
[1722433653500,0.00183,66900.0,66899.0,0.96692638]
[1722433653711,0.00183,66900.0,66899.0,0.842695]
[1722433653919,0.00183,66900.0,66899.0,0.766395]
[1722433654128,0.00183,66900.0,66899.0,0.019]
[1722433654367,0.00183,66900.0,66899.0,0.168479]
[1722433655453,0.00183,66900.0,66899.0,0.766395]
[1722433655875,0.00183,66900.0,66899.0,1.053353]
[1722433656090,0.00283,66900.0,66899.0,0.754395]
[1722433656290,0.00283,66900.0,66899.0,0.87863172]
[1722433656497,0.00283,66900.0,66899.0,0.754395]
[1722433656932,0.00183,66900.0,66899.0,0.747395]
[1722433657148,0.00183,66900.0,66899.0,1.047353]
[1722433657415,0.00683,66900.0,66899.0,0.748395]
[1722433657626,0.00183,66900.0,66899.0,1.046353]
[1722433657835,0.00583,66900.0,66899.0,0.748395]
[1722433658266,0.00583,66900.0,66899.0,0.97694672]
[1722433658267,0.00683,66900.0,66899.0,0.97694672]
[1722433658482,0.00683,66900.0,66899.0,1.40013793]
[1722433658694,0.00083,66900.0,66899.0,1.39913793]
[1722433658900,0.00183,66900.0,66899.0,1.39913793]
[1722433659629,0.00083,66900.0,66899.0,0.95062821]
[1722433659868,0.00083,66900.0,66899.0,0.748395]
[1722433660087,0.00083,66900.0,66899.0,0.450437]
[1722433660088,0.00583,66900.0,66899.0,0.450437]
[1722433660539,0.00583,66900.0,66899.0,0.748395]
[1722433660540,0.00083,66900.0,66899.0,0.748395]
[1722433660781,0.00583,66900.0,66899.0,0.749395]
[1722433661214,0.00583,66900.0,66899.0,0.89894672]
[1722433661440,0.00583,66900.0,66899.0,0.748395]
[1722433661441,0.00083,66900.0,66899.0,0.748395]
[1722433661918,0.00483,66900.0,66899.0,0.748395]
[1722433662134,0.00483,66900.0,66899.0,0.747395]
[1722433662594,0.00583,66900.0,66899.0,0.747395]
[1722433663005,0.00483,66900.0,66899.0,0.747395]
[1722433663218,0.00083,66900.0,66899.0,0.747395]
[1722433663667,0.00383,66900.0,66899.0,0.747395]
[1722433663877,0.00083,66900.0,66899.0,0.448437]
[1722433664094,0.00483,66900.0,66899.0,0.448437]
[1722433664396,0.00483,66900.0,66899.0,0.747395]
[1722433665104,0.00083,66900.0,66899.0,0.747395]
[1722433665333,0.00083,66900.0,66892.0,0.079]
[1722433665561,0.00083,66900.0,66899.0,0.149479]
[1722433665983,0.00083,66900.0,66899.0,0.001]
[1722433666204,0.04554288,66900.0,66899.0,0.001]
[1722433666418,0.04554288,66900.0,66899.0,0.747395]
[1722433666634,0.00083,66900.0,66899.0,0.747395]
[1722433667290,0.00083,66900.0,66899.0,1.046353]
[1722433667506,0.00083,66900.0,66899.0,0.747395]
[1722433667713,0.00383,66900.0,66899.0,0.747395]
[1722433667922,0.04857147,66900.0,66899.0,0.747395]
[1722433668167,0.00383,66900.0,66899.0,0.747395]
[1722433668871,0.04861102,66900.0,66899.0,0.747395]
[1722433669562,0.00383,66900.0,66899.0,0.747395]
[1722433670804,0.00383,66900.0,66899.0,0.449437]
[1722433671025,0.516859,66900.0,66899.0,0.001]
[1722433671244,0.96536372,66900.0,66899.0,0.001]
[1722433671921,1.50181279,66900.0,66899.0,0.001]
[1722433672129,1.50181279,66900.0,66878.0,0.1407]
[1722433672130,0.42695172,66900.0,66878.0,0.0787]
[1722433672333,0.42695172,66900.0,66873.0,0.299072]
[1722433672334,0.0447976,66880.0,66873.0,0.299072]
[1722433672546,0.0447976,66878.0,66875.0,0.299064]
[1722433672770,0.0447976,66878.0,66874.0,0.00299024]
[1722433672976,0.0447976,66878.0,66873.0,0.299072]
[1722433672977,0.0671964,66879.0,66873.0,0.299072]
[1722433673198,0.04478568,66876.0,66875.0,0.149531]
[1722433673438,0.0671964,66878.0,66876.0,0.14953]
[1722433673644,0.0671964,66878.0,66869.0,0.299089]
[1722433673849,0.04476868,66876.0,66870.0,0.299087]
[1722433674055,0.04476868,66874.0,66871.0,0.14954]
[1722433674259,0.04476868,66874.0,66870.0,0.299087]
[1722433674473,0.04476868,66874.0,66873.0,0.150537]
[1722433674713,0.04476868,66874.0,66873.0,0.448611]
[1722433675313,0.04476868,66874.0,66870.0,0.149542]
[1722433675529,0.19430368,66874.0,66868.0,0.000913]
[1722433675763,0.04476868,66872.0,66868.0,0.000913]
[1722433675973,0.04476868,66871.0,66870.0,0.44863]
[1722433676191,0.0965952,66874.0,66871.0,0.448623]
[1722433676192,0.04473766,66872.0,66871.0,0.448623]
[1722433676409,0.04773766,66874.0,66873.0,0.448611]
[1722433676616,0.04773766,66874.0,66868.0,0.000913]
[1722433677234,0.10793766,66871.0,66868.0,0.000913]
[1722433677451,0.04473766,66870.0,66868.0,0.000913]
[1722433677663,0.04473766,66869.0,66868.0,0.000913]
[1722433677867,0.04470587,66869.0,66868.0,0.000913]
[1722433678020,0.0671065,66869.0,66868.0,0.000913]
[1722433678230,0.0671065,66869.0,66868.0,0.001913]
[1722433678440,0.044686,66870.0,66868.0,0.001913]
[1722433678850,0.044686,66870.0,66868.0,0.000913]
[1722433679284,0.49432368,66869.0,66868.0,0.002913]
[1722433679491,0.79339849,66869.0,66868.0,0.002913]
[1722433679782,0.74873,66869.0,66868.0,0.000913]
[1722433679982,0.26224382,66869.0,66868.0,0.000913]
[1722433680203,0.001,66869.0,66868.0,0.000913]
[1722433680594,0.15547137,66879.0,66868.0,0.000913]
[1722433680823,0.0661,66879.0,66870.0,0.299085]
[1722433680973,0.0661,66879.0,66868.0,0.083713]
[1722433681175,0.149546,66869.0,66868.0,0.001913]
[1722433681424,0.150546,66869.0,66868.0,0.001913]
[1722433681694,0.001,66869.0,66868.0,0.001913]
[1722433681893,0.04466929,66877.0,66868.0,0.001913]
[1722433682044,0.14955172,66876.0,66870.0,0.001]
[1722433682234,0.448624,66871.0,66870.0,0.002]
[1722433682471,1.08470679,66871.0,66870.0,0.001]
[1722433682833,0.29235172,66871.0,66868.0,0.000913]
[1722433683051,0.29909672,66870.0,66868.0,0.000913]
[1722433683262,0.1428,66871.0,66868.0,0.000913]
[1722433683263,0.0662,66871.0,66868.0,0.002913]
[1722433683456,0.0669721,66880.0,66868.0,0.002913]
[1722433683457,0.04464807,66881.0,66868.0,0.00590369]
[1722433683716,0.04464807,66881.0,66869.0,0.0829]
[1722433683717,0.149527,66878.0,66869.0,0.0829]
[1722433683930,0.149526,66878.0,66869.0,0.0829]
[1722433684144,0.14955172,66881.0,66868.0,0.002913]
[1722433684357,0.29907172,66881.0,66874.0,0.149534]
[1722433684591,0.14955172,66881.0,66876.0,0.149529]
[1722433684800,0.14955172,66881.0,66873.0,0.149536]
[1722433685005,0.149521,66880.0,66873.0,0.149536]
[1722433685234,0.149529,66877.0,66874.0,0.0012383]
[1722433685478,0.149522,66880.0,66872.0,0.299078]
[1722433685703,0.14955172,66881.0,66869.0,0.0015542]
[1722433685965,0.29907172,66881.0,66874.0,0.149533]
[1722433686192,0.149523,66879.0,66873.0,0.15650267]
[1722433686424,0.149521,66880.0,66874.0,0.1510882]
[1722433686648,0.149522,66880.0,66874.0,0.1510872]
[1722433686843,0.149522,66880.0,66874.0,0.00851874]
[1722433687059,0.31307072,66881.0,66876.0,0.001]
[1722433687321,0.31307072,66881.0,66877.0,0.0015542]
[1722433687543,0.29907072,66881.0,66877.0,0.00851534]
[1722433687768,0.14955172,66881.0,66877.0,0.00696114]
[1722433687984,0.14955172,66881.0,66878.0,0.0015542]
[1722433688208,0.44857,66879.0,66878.0,0.0015542]
[1722433688454,0.14955172,66881.0,66869.0,0.0015542]
[1722433688699,0.014,66880.0,66874.0,0.001]
[1722433688937,0.014,66880.0,66879.0,0.44857]
[1722433689171,0.06687976,66897.0,66879.0,0.44857]
[1722433689172,0.0806,66900.0,66879.0,0.14955172]
[1722433689417,0.0806,66900.0,66888.0,0.07476412]
[1722433689671,0.02083,66900.0,66895.0,0.298973]
[1722433689919,0.02083,66900.0,66889.0,0.00298949]
[1722433689920,0.170307,66900.0,66894.0,0.149489]
[1722433690173,0.31985872,66900.0,66893.0,0.149491]
[1722433690408,0.14948,66899.0,66895.0,0.00695404]
[1722433690638,0.31985772,66900.0,66895.0,0.00695404]
[1722433690872,0.149482,66898.0,66895.0,0.00695404]
[1722433691105,0.48433572,66900.0,66896.0,0.0015542]
[1722433691338,0.149483,66898.0,66896.0,0.00850711]
[1722433691565,0.44845,66897.0,66896.0,0.0015542]
[1722433691806,0.747417,66897.0,66896.0,0.0015542]
[1722433692037,0.298976,66895.0,66890.0,0.0015542]
[1722433692306,0.298976,66895.0,66884.0,0.149511]
[1722433692307,0.298985,66893.0,66884.0,0.149511]
[1722433692533,0.0445865,66899.0,66891.0,0.00695857]
[1722433692534,0.37924572,66892.0,66891.0,0.00695857]
[1722433692778,0.37924572,66892.0,66883.0,0.0015542]
[1722433692779,0.149512,66884.0,66883.0,0.0015542]
[1722433692945,0.149508,66886.0,66879.0,0.001]
[1722433693220,0.57332722,66892.0,66879.0,0.001]
[1722433693221,0.0802,66892.0,66880.0,0.00407343]
[1722433693423,0.08917301,66898.0,66880.0,0.00407343]
[1722433693424,0.014,66899.0,66898.0,0.149481]
[1722433693649,0.014,66899.0,66895.0,0.298974]
[1722433693650,0.014,66899.0,66884.0,0.4771]
[1722433693859,0.014,66899.0,66898.0,0.00695065]
[1722433694063,0.02183,66900.0,66895.0,0.001]
[1722433694268,0.17038172,66900.0,66898.0,0.00695065]
[1722433694439,0.17038172,66900.0,66896.0,0.001]
[1722433694696,0.91776372,66900.0,66899.0,0.00694952]
[1722433694972,0.91776372,66900.0,66888.0,0.299002]
[1722433694973,0.149486,66896.0,66890.0,0.149498]
[1722433695219,0.001,66892.0,66891.0,0.0015542]
[1722433695460,0.94297629,66892.0,66891.0,0.0015542]
[1722433695701,1.35158573,66892.0,66891.0,0.0015542]
[1722433695956,1.35158573,66892.0,66880.0,0.001]
[1722433695957,0.747595,66881.0,66880.0,0.001]
[1722433696197,0.448557,66881.0,66880.0,0.001]
[1722433696447,0.97284672,66881.0,66880.0,0.001]
[1722433696682,0.78492574,66881.0,66880.0,0.001]
[1722433696934,0.299043,66880.0,66871.0,0.149541]
[1722433697172,0.149532,66876.0,66869.0,0.149545]
[1722433697418,0.14955172,66879.0,66870.0,0.299086]
[1722433697671,0.04462414,66883.0,66880.0,0.149521]
[1722433697917,0.014,66881.0,66880.0,0.001]
[1722433698197,0.015,66881.0,66880.0,0.151521]
[1722433698432,0.001,66881.0,66880.0,0.001]
[1722433698777,0.001,66881.0,66877.0,0.149527]
[1722433698928,0.299033,66883.0,66875.0,0.14953]
[1722433699178,0.149524,66879.0,66872.0,0.149538]
[1722433699407,0.149535,66874.0,66868.0,0.000913]
[1722433699674,0.14955172,66874.0,66868.0,0.000913]
[1722433699955,0.149546,66869.0,66868.0,0.000913]
[1722433700535,1.03988172,66869.0,66868.0,0.000913]
[1722433700808,1.084505,66869.0,66868.0,0.000913]
[1722433701044,1.03988172,66869.0,66868.0,0.001913]
[1722433701291,1.10683562,66869.0,66868.0,0.000913]
[1722433701551,1.61260422,66869.0,66868.0,0.000913]
[1722433701792,1.65725172,66869.0,66868.0,0.000913]
[1722433702041,1.65725172,66869.0,66868.0,0.004913]
[1722433702042,1.35815972,66869.0,66868.0,0.004913]
[1722433702294,1.54566189,66869.0,66868.0,0.004913]
[1722433702534,1.55566189,66869.0,66868.0,0.000913]
[1722433702752,1.86875389,66869.0,66868.0,0.001913]
[1722433702973,1.58966189,66869.0,66868.0,0.001913]
[1722433703223,1.56966189,66869.0,66868.0,0.001913]
[1722433703493,1.67919588,66869.0,66868.0,0.001913]
[1722433703736,1.99829373,66869.0,66868.0,0.001913]
[1722433704006,1.90075389,66869.0,66868.0,0.001913]
[1722433704275,1.87275389,66869.0,66868.0,0.000913]
[1722433704542,1.90975389,66869.0,66868.0,0.000913]
[1722433704780,1.92375389,66869.0,66868.0,0.000913]
[1722433705279,1.96251917,66869.0,66868.0,0.000913]
[1722433705522,2.22284589,66869.0,66868.0,0.000913]